[Event "II Duchamp Open 2018-U1800"]
[Site "Rio de Janeiro"]
[Date "2018.11.16"]
[Round "1"]
[White "Cabrera Tabeira, Nelson Fabian"]
[Black "Agrasot, Antonio"]
[Result "1/2-1/2"]
[ECO "D35"]
[WhiteElo "1752"]
[BlackElo "1562"]
[Annotator "NA RC"]
[PlyCount "119"]
[EventDate "2018.11.14"]
[EventType "swiss"]
[EventCountry "BRA"]
[SourceTitle "playchess.com"]
[Source "ChessBase"]
[SourceQuality "1"]
[TimeControl "5400+30"]

1. d4 {[%emt 0:29:43]} d5 {[%emt 0:30:07]} 2. c4 {[%emt 0:00:08]} e6 3. Nc3 {[%emt 0:00:13]} Nf6 {[%emt 0:00:23]} 4. Bf4 {[%emt 0:01:28]} Bb4 {[%emt 0:00:38]} 5. e3 {[%emt 0:02:07]} c6 {[%emt 0:01:21]} 6. Bd3 {[%emt 0:02:43]} dxc4 {[%emt 0:02:58]} 7. Bxc4 {[%emt 0:00:26]} Ne4 {[%emt 0:00:48]} 8. Nge2 {[%emt 0:02:09]} Nxc3 {[%emt 0:02:25]} 9. Nxc3 {[%emt 0:02:21]} Bd6 {[%emt 0:00:09]} 10. Bxd6 {[%emt 0:02:10]} Qxd6 {[%emt 0:00:09]} 11. f4 {[%emt 0:00:27]} O-O {[%emt 0:04:18]} 12. O-O {[%emt 0:00:17]} Nd7 {[%emt 0:00:17]} 13. Ne4 {[%emt 0:04:33]} Qe7 {[%emt 0:00:10]} 14. Qh5 {[%emt 0:09:19]} h6 {[%emt 0:07:17]} 15. Rf3 Nf6 {[%emt 0:11:14]} 16. Qh4 {[%emt 0:11:13]} Re8 {[%emt 0:07:42]} 17. Nxf6+ {[%emt 0:04:59]} Qxf6 {[%emt 0:00:23]} 18. Qxf6 {[%emt 0:00:45]} gxf6 {[%emt 0:00:11]} 19. b4 {[%emt 0:05:01]} Bd7 {[%emt 0:00:30]} 20. e4 {[%emt 0:00:44]} Re7 {[%emt 0:04:09]} 21. Rb1 {[%emt 0:01:11]} a6 {[%emt 0:01:14]} 22. Rg3+ {[%emt 0:00:44]} Kh7 {[%emt 0:00:39]} 23. e5 {[%emt 0:01:12]} f5 {[%emt 0:00:24]} 24. Rbb3 {[%emt 0:01:05]} Rg8 {[%emt 0:00:30]} 25. Rh3 {[%emt 0:00:43]} Rg6 26. Rh5 {[%emt 0:03:01]} Re8 {[%emt 0:01:21]} 27. h3 {[%emt 0:02:03]} Kg7 {[%emt 0:07:13]} 28. Kf2 {[%emt 0:01:59]} Rh8 {[%emt 0:00:10]} 29. g4 {[%emt 0:01:20]} fxg4 {[%emt 0:05:27]} 30. Bd3 {[%emt 0:01:36]} f5 {[%emt 0:00:10]} 31. exf6+ {[%emt 0:00:14]} Rxf6 {[%emt 0:00:03]} 32. Kg3 {[%emt 0:00:20]} Rhf8 {[%emt 0:00:20]} 33. hxg4 {[%emt 0:01:40]} Rxf4 {[%emt 0:00:17]} 34. g5 {[%emt 0:00:38]} Rf3+ {[%emt 0:04:05]} 35. Kg2 {[%emt 0:00:06]} Rf2+ {[%emt 0:03:24]} 36. Kg1 {[%emt 0:00:07]} R2f4 {[%emt 0:03:12]} 37. gxh6+ {[%emt 0:00:50]} Kh8 {[%emt 0:00:22]} 38. Rg5 {[%emt 0:03:44]} Rg8 {[%emt 0:00:33]} 39. Rxg8+ {[%emt 0:00:28]} Kxg8 {[%emt 0:00:08]} 40. Rb2 {[%emt 0:00:11]} Rg4+ {[%emt 0:00:44]} 41. Kf2 {[%emt 0:00:16]} Rxd4 {[%emt 0:00:38]} 42. Ke3 {[%emt 0:02:32]} e5 {[%emt 0:01:50]} 43. Rg2+ {[%emt 0:00:13]} Rg4 {[%emt 0:00:09]} 44. Rxg4+ {[%emt 0:00:33]} Bxg4 {[%emt 0:00:02]} 45. Be4 {[%emt 0:00:07]} Be6 {[%emt 0:00:00]} 46. a4 {[%emt 0:00:24]} Bb3 {[%emt 0:00:00]} 47. a5 {[%emt 0:00:10]} Kh8 {[%emt 0:00:29]} 48. Kf3 {[%emt 0:00:15]} Bg8 {[%emt 0:00:09]} 49. Kg4 {[%emt 0:00:26]} Bh7 {[%emt 0:00:18]} 50. Bxh7 {[%emt 0:00:13]} Kxh7 {[%emt 0:00:01]} 51. Kf5 {[%emt 0:00:09]} Kxh6 {[%emt 0:00:29]} 52. Kxe5 {[%emt 0:00:10]} Kg5 {[%emt 0:00:01]} 53. Kd6 {[%emt 0:00:06]} Kf4 {[%emt 0:00:19]} 54. Kc5 {[%emt 0:00:19]} Ke5 {[%emt 0:00:16]} 55. Kb6 {[%emt 0:00:11]} Kd5 {[%emt 0:03:35]} 56. Kxb7 {[%emt 0:00:15]} c5 {[%emt 0:00:25]} 57. bxc5 {[%emt 0:02:37]} Kxc5 {[%emt 0:00:03]} 58. Kxa6 {[%emt 0:00:07]} Kc6 {[%emt 0:00:08]} 59. Ka7 {[%emt 0:00:09]} Kc7 {[%emt 0:00:04]} 60. a6 {[%emt 0:00:16]} 1/2-1/2

[Event "II Duchamp Open 2018-U1800"]
[Site "Rio de Janeiro"]
[Date "2018.11.16"]
[Round "1"]
[White "Mesquita, Arnaldo Leite"]
[Black "Gomes, Carlos"]
[Result "*"]
[ECO "A38"]
[WhiteElo "1749"]
[BlackElo "1543"]
[Annotator "NA RC"]
[PlyCount "110"]
[EventDate "2018.11.14"]
[EventType "swiss"]
[EventCountry "BRA"]
[SourceTitle "playchess.com"]
[Source "ChessBase"]
[SourceQuality "1"]
[TimeControl "5400+30"]

1. c4 {[%emt 0:29:37]} c5 {[%emt 0:30:14]} 2. Nc3 {[%emt 0:00:07]} Nc6 3. Nf3 {[%emt 0:00:22]} Nf6 {[%emt 0:00:14]} 4. g3 {[%emt 0:00:08]} g6 {[%emt 0:00:05]} 5. Bg2 {[%emt 0:00:06]} Bg7 {[%emt 0:00:07]} 6. O-O {[%emt 0:00:12]} O-O {[%emt 0:00:04]} 7. d3 {[%emt 0:00:09]} d6 {[%emt 0:01:00]} 8. Rb1 {[%emt 0:00:09]} Rb8 {[%emt 0:00:05]} 9. Bd2 {[%emt 0:00:57]} Bd7 {[%emt 0:00:22]} 10. a3 {[%emt 0:00:46]} a6 {[%emt 0:04:06]} 11. b4 {[%emt 0:00:47]} cxb4 {[%emt 0:03:29]} 12. axb4 {[%emt 0:00:27]} b5 {[%emt 0:01:08]} 13. Qc1 {[%emt 0:08:45]} bxc4 {[%emt 0:00:23]} 14. dxc4 {[%emt 0:01:28]} Nxb4 {[%emt 0:04:57]} 15. Qa3 {[%emt 0:02:32]} a5 {[%emt 0:02:40]} 16. Na2 {[%emt 0:08:25]} Nc6 {[%emt 0:01:43]} 17. Rb5 {[%emt 0:01:29]} Nb4 18. Rxa5 {[%emt 0:06:42]} Nxa2 {[%emt 0:11:22]} 19. Qxa2 {[%emt 0:03:56]} Ra8 {[%emt 0:02:27]} 20. Nd4 {[%emt 0:05:30]} Rxa5 {[%emt 0:00:55]} 21. Bxa5 {[%emt 0:02:50]} Qc8 {[%emt 0:00:50]} 22. Bb6 {[%emt 0:03:45]} Bh3 {[%emt 0:02:53]} 23. Nc6 {[%emt 0:03:03]} Re8 {[%emt 0:02:03]} 24. Na7 {[%emt 0:05:55]} Qb8 25. Rb1 {[%emt 0:02:59]} Bxg2 {[%emt 0:04:53]} 26. Kxg2 {[%emt 0:00:16]} Qb7+ {[%emt 0:00:37]} 27. f3 {[%emt 0:00:13]} Rb8 {[%emt 0:00:30]} 28. h3 {[%emt 0:03:11]} Nd7 {[%emt 0:00:22]} 29. c5 {[%emt 0:04:30]} dxc5 {[%emt 0:01:23]} 30. Bxc5 {[%emt 0:00:30]} Qxb1 {[%emt 0:00:14]} 31. Qxb1 {[%emt 0:01:29]} Rxb1 {[%emt 0:00:08]} 32. Bxe7 {[%emt 0:00:10]} Rb2 {[%emt 0:05:35]} 33. Kf1 {[%emt 0:01:38]} Bd4 {[%emt 0:02:42]} 34. Nc6 {[%emt 0:00:25]} Be3 {[%emt 0:01:32]} 35. f4 {[%emt 0:00:29]} Bc5 {[%emt 0:03:49]} 36. Bd8 {[%emt 0:00:55]} Kf8 {[%emt 0:01:14]} 37. Bc7 {[%emt 0:01:11]} f6 {[%emt 0:01:37]} 38. Ba5 {[%emt 0:00:36]} Kf7 {[%emt 0:01:25]} 39. Bc3 {[%emt 0:00:10]} Rc2 {[%emt 0:00:54]} 40. Be1 {[%emt 0:00:51]} Rc1 {[%emt 0:00:42]} 41. e4 {[%emt 0:00:56]} Bb6 {[%emt 0:01:01]} 42. Nb4 {[%emt 0:00:28]} Rc4 {[%emt 0:01:30]} 43. e5 {[%emt 0:00:49]} fxe5 {[%emt 0:00:14]} 44. fxe5 {[%emt 0:00:24]} Nxe5 {[%emt 0:00:11]} 45. Nd5 {[%emt 0:00:14]} Bd8 {[%emt 0:00:37]} 46. Bc3 {[%emt 0:00:44]} Rc5 {[%emt 0:01:41]} 47. Bxe5 {[%emt 0:00:18]} Rxd5 {[%emt 0:00:04]} 48. Bf4 {[%emt 0:00:39]} Bg5 {[%emt 0:00:14]} 49. Bc7 {[%emt 0:00:12]} Rd2 {[%emt 0:00:20]} 50. h4 {[%emt 0:00:03]} Be3 {[%emt 0:00:18]} 51. Ba5 {[%emt 0:00:26]} Ra2 {[%emt 0:00:13]} 52. Bc3 {[%emt 0:00:09]} h5 {[%emt 0:00:22]} 53. Be5 {[%emt 0:00:13]} Ke6 {[%emt 0:00:21]} 54. Bc7 {[%emt 0:00:07]} Kf5 {[%emt 0:00:10]} 55. Ke1 {[%emt 0:00:19]} Kg4 {[%emt 0:00:11]} *

[Event "II Duchamp Open 2018-U1800"]
[Site "Rio de Janeiro"]
[Date "2018.11.16"]
[Round "1"]
[White "Rial, Antonio Marcos Pino"]
[Black "Valente, Fernando Cesar"]
[Result "1-0"]
[ECO "B08"]
[WhiteElo "1712"]
[BlackElo "1522"]
[Annotator "NA RC"]
[PlyCount "69"]
[EventDate "2018.11.14"]
[EventType "swiss"]
[EventCountry "BRA"]
[SourceTitle "playchess.com"]
[Source "ChessBase"]
[SourceQuality "1"]
[TimeControl "5400+30"]

1. d4 Nf6 2. Nf3 g6 3. Nc3 d6 4. e4 Bg7 5. Be3 O-O 6. Bd3 Ng4 7. Bg5 h6 8. Bh4 g5 9. Bg3 f5 10. exf5 Bxf5 11. Bxf5 Rxf5 12. h3 Nf6 13. d5 c5 14. Qe2 Nfd7 15. Qe6+ Rf7 16. O-O Nf8 17. Qe3 Nbd7 18. Rfe1 Ng6 19. Rad1 a6 20. Ne2 Nde5 21. Nxe5 Nxe5 22. b3 Qd7 23. f4 gxf4 24. Nxf4 Rxf4 25. Bxf4 {[%emt 0:52:35]} Ng6 26. Bxh6 {[%emt 0:00:30]} Bd4 {[%emt 1:38:04]} 27. Rxd4 {[%emt 0:00:06]} cxd4 {[%emt 0:01:04]} 28. Qxd4 {[%emt 0:00:03]} Ne5 {[%emt 0:01:41]} 29. Re4 {[%emt 0:00:11]} e6 {[%emt 0:02:41]} 30. dxe6 {[%emt 0:01:09]} Qe7 {[%emt 0:00:24]} 31. Bf4 {[%emt 0:00:42]} Rd8 {[%emt 0:01:05]} 32. Bxe5 {[%emt 0:00:17]} dxe5 {[%emt 0:00:24]} 33. Qxe5 {[%emt 0:00:02]} Rd1+ {[%emt 0:00:09]} 34. Kh2 {[%emt 0:00:21]} Rd2 {[%emt 0:00:53]} 35. Rg4+ {[%emt 0:00:26]} 1-0

[Event "II Duchamp Open 2018-U1800"]
[Site "Rio de Janeiro"]
[Date "2018.11.16"]
[Round "1"]
[White "Souza, Neurismar Da Rocha"]
[Black "Da Silva, Joao Carlos Orguim"]
[Result "1-0"]
[ECO "B34"]
[WhiteElo "1551"]
[BlackElo "1751"]
[Annotator "NA RC"]
[PlyCount "93"]
[EventDate "2018.11.14"]
[EventType "swiss"]
[EventCountry "BRA"]
[SourceTitle "playchess.com"]
[Source "ChessBase"]
[SourceQuality "1"]
[TimeControl "5400+30"]

1. e4 c5 {[%emt 0:29:38]} 2. Nf3 {[%emt 0:31:04]} Nc6 {[%emt 0:00:08]} 3. d4 {[%emt 0:00:36]} cxd4 {[%emt 0:00:09]} 4. Nxd4 {[%emt 0:00:37]} g6 {[%emt 0:00:02]} 5. Nc3 {[%emt 0:00:42]} Bg7 {[%emt 0:00:12]} 6. Be3 {[%emt 0:00:21]} Nf6 {[%emt 0:00:17]} 7. Bd3 {[%emt 0:00:42]} d6 {[%emt 0:03:41]} 8. O-O {[%emt 0:00:56]} Ng4 {[%emt 0:00:28]} 9. Nxc6 {[%emt 0:00:53]} bxc6 {[%emt 0:00:27]} 10. Bd2 {[%emt 0:01:41]} O-O {[%emt 0:03:06]} 11. Rb1 {[%emt 0:01:20]} Be6 {[%emt 0:04:56]} 12. b3 {[%emt 0:00:57]} a5 {[%emt 0:07:35]} 13. Qe2 {[%emt 0:03:23]} Qb6 {[%emt 0:01:43]} 14. Kh1 {[%emt 0:01:06]} Bd4 {[%emt 0:01:47]} 15. Nd1 {[%emt 0:01:13]} Ne5 {[%emt 0:05:07]} 16. Bc3 {[%emt 0:04:44]} Bxc3 {[%emt 0:02:13]} 17. Nxc3 {[%emt 0:00:08]} Qd4 {[%emt 0:00:18]} 18. Qd2 {[%emt 0:04:08]} Nxd3 {[%emt 0:02:16]} 19. Qxd3 {[%emt 0:00:38]} Qxd3 {[%emt 0:00:28]} 20. cxd3 {[%emt 0:00:12]} c5 21. f4 {[%emt 0:01:44]} f5 {[%emt 0:02:17]} 22. Rbe1 {[%emt 0:00:49]} Ra7 {[%emt 0:01:01]} 23. e5 {[%emt 0:01:53]} d5 {[%emt 0:00:31]} 24. Rc1 {[%emt 0:01:18]} c4 {[%emt 0:06:15]} 25. dxc4 {[%emt 0:01:38]} dxc4 {[%emt 0:00:01]} 26. Nb5 {[%emt 0:01:06]} Rb7 {[%emt 0:01:30]} 27. Nd4 {[%emt 0:00:32]} Bd5 {[%emt 0:00:22]} 28. bxc4 {[%emt 0:00:24]} Be4 {[%emt 0:01:52]} 29. Rf2 {[%emt 0:06:28]} a4 {[%emt 0:02:50]} 30. c5 {[%emt 0:02:01]} Re8 {[%emt 0:01:10]} 31. a3 {[%emt 0:02:25]} Rc7 {[%emt 0:04:48]} 32. c6 Rb8 {[%emt 0:07:28]} 33. Kg1 {[%emt 0:05:11]} Kf7 {[%emt 0:02:38]} 34. Kf1 {[%emt 0:04:36]} Rb6 {[%emt 0:01:38]} 35. Ke1 {[%emt 0:01:15]} e6 {[%emt 0:00:53]} 36. Rd2 {[%emt 0:02:19]} Ke7 {[%emt 0:00:13]} 37. g3 {[%emt 0:01:58]} Bd5 {[%emt 0:01:35]} 38. Rdc2 {[%emt 0:03:00]} h6 {[%emt 0:03:38]} 39. Rc5 {[%emt 0:03:00]} Rb2 {[%emt 0:00:42]} 40. h4 {[%emt 0:02:07]} Rg2 {[%emt 0:00:37]} 41. R1c3 {[%emt 0:00:35]} Rc8 {[%emt 0:01:38]} 42. c7 {[%emt 0:01:50]} Kd7 {[%emt 0:00:34]} 43. Nb5 {[%emt 0:00:55]} Bb7 {[%emt 0:01:19]} 44. Nd6 {[%emt 0:01:44]} Bd5 {[%emt 0:00:55]} 45. Nxc8 {[%emt 0:00:44]} Kxc8 {[%emt 0:00:01]} 46. Ra5 {[%emt 0:00:49]} Ra2 {[%emt 0:01:24]} 47. Rxa4 {[%emt 0:00:29]} 1-0

[Event "II Duchamp Open 2018-U1800"]
[Site "Rio de Janeiro"]
[Date "2018.11.16"]
[Round "1"]
[White "Da Costa, Carlos Henrique Luz"]
[Black "De Oliveira, Joao Eudes"]
[Result "1-0"]
[ECO "A46"]
[WhiteElo "1536"]
[BlackElo "1726"]
[Annotator "NA RC"]
[PlyCount "84"]
[EventDate "2018.11.14"]
[EventType "swiss"]
[EventCountry "BRA"]
[SourceTitle "playchess.com"]
[Source "ChessBase"]
[SourceQuality "1"]
[TimeControl "5400+30"]

1. d4 {[%emt 0:29:33]} Nf6 {[%emt 0:29:47]} 2. Nf3 {[%emt 0:00:11]} e6 3. Bf4 {[%emt 0:00:50]} d6 {[%emt 0:01:17]} 4. e3 {[%emt 0:00:26]} Be7 {[%emt 0:00:18]} 5. h3 {[%emt 0:00:42]} O-O {[%emt 0:00:15]} 6. Be2 {[%emt 0:00:58]} c5 {[%emt 0:00:47]} 7. Nbd2 {[%emt 0:00:13]} b6 {[%emt 0:00:37]} 8. c3 {[%emt 0:01:32]} Bb7 {[%emt 0:00:12]} 9. O-O {[%emt 0:00:09]} Nbd7 {[%emt 0:00:54]} 10. Nc4 {[%emt 0:01:09]} d5 {[%emt 0:02:39]} 11. Nce5 {[%emt 0:02:49]} cxd4 {[%emt 0:02:20]} 12. exd4 {[%emt 0:00:35]} Nxe5 {[%emt 0:02:37]} 13. Bxe5 {[%emt 0:01:54]} Ne4 {[%emt 0:01:06]} 14. Re1 {[%emt 0:00:36]} Bd6 {[%emt 0:01:46]} 15. Bd3 {[%emt 0:03:02]} Re8 {[%emt 0:01:23]} 16. Re2 {[%emt 0:03:32]} h6 {[%emt 0:04:28]} 17. Qb3 {[%emt 0:04:51]} Rc8 {[%emt 0:03:19]} 18. Rae1 {[%emt 0:00:47]} Nf6 {[%emt 0:00:48]} 19. Bxd6 {[%emt 0:06:16]} Qxd6 {[%emt 0:00:25]} 20. Qa4 {[%emt 0:01:15]} a5 {[%emt 0:01:16]} 21. Ne5 {[%emt 0:00:34]} Rc7 {[%emt 0:02:36]} 22. Bb5 Ree7 {[%emt 0:02:06]} 23. Re3 {[%emt 0:07:17]} g6 {[%emt 0:02:28]} 24. Qd1 {[%emt 0:00:45]} Kg7 {[%emt 0:02:48]} 25. Qf3 {[%emt 0:00:52]} Qd8 {[%emt 0:00:43]} 26. Qf4 {[%emt 0:01:40]} g5 {[%emt 0:04:51]} 27. Qf3 Qh8 {[%emt 0:05:26]} 28. Qe2 {[%emt 0:09:34]} Rc8 {[%emt 0:01:10]} 29. Rf1 {[%emt 0:03:24]} Rf8 30. f4 {[%emt 0:02:01]} Ne4 {[%emt 0:06:05]} 31. fxg5 {[%emt 0:02:34]} hxg5 {[%emt 0:01:20]} 32. Nd7 {[%emt 0:01:35]} Rg8 {[%emt 0:03:46]} 33. Qf3 {[%emt 0:02:30]} Qh4 {[%emt 0:02:28]} 34. Rxe4 {[%emt 0:02:22]} Qxe4 {[%emt 0:03:13]} 35. Qf6+ {[%emt 0:00:07]} Kh7 {[%emt 0:01:12]} 36. Qxe7 {[%emt 0:00:19]} Qe3+ {[%emt 0:00:35]} 37. Kh1 {[%emt 0:00:19]} Rg7 {[%emt 0:01:21]} 38. Nf6+ {[%emt 0:00:28]} Kg6 {[%emt 0:00:29]} 39. Qxb7 {[%emt 0:02:28]} Qd2 {[%emt 0:01:30]} 40. Ng4 {[%emt 0:01:48]} f5 {[%emt 0:00:59]} 41. Ne5+ {[%emt 0:00:42]} Kh6 {[%emt 0:00:09]} 42. Qxb6 {[%emt 0:00:47]} Qe2 {[%emt 0:01:10]} 1-0

[Event "II Duchamp Open 2018-U1800"]
[Site "Rio de Janeiro"]
[Date "2018.11.19"]
[Round "4"]
[White "De Oliveira, Joao Eudes"]
[Black "Souza, Neurismar Da Rocha"]
[Result "0-1"]
[ECO "D02"]
[WhiteElo "1726"]
[BlackElo "1551"]
[Annotator "NA RC"]
[PlyCount "54"]
[EventDate "2018.11.14"]
[EventType "swiss"]
[EventCountry "BRA"]
[SourceTitle "playchess.com"]
[Source "ChessBase"]
[SourceQuality "1"]
[TimeControl "5400+30"]

1. d4 {[%emt 0:29:34]} d5 {[%emt 0:29:44]} 2. Nf3 {[%emt 0:00:12]} e6 {[%emt 0:00:22]} 3. Bg5 {[%emt 0:00:31]} Be7 {[%emt 0:00:26]} 4. Bxe7 {[%emt 0:00:08]} Qxe7 {[%emt 0:00:21]} 5. c3 {[%emt 0:00:17]} Nd7 {[%emt 0:00:23]} 6. e3 {[%emt 0:00:15]} b6 {[%emt 0:00:53]} 7. Bd3 {[%emt 0:00:15]} Bb7 {[%emt 0:00:20]} 8. Nbd2 {[%emt 0:00:26]} Ngf6 {[%emt 0:00:19]} 9. O-O {[%emt 0:00:15]} Ne4 {[%emt 0:00:30]} 10. Ne5 {[%emt 0:05:25]} Nxe5 {[%emt 0:00:30]} 11. dxe5 {[%emt 0:00:08]} O-O {[%emt 0:01:09]} 12. f4 {[%emt 0:00:26]} f5 {[%emt 0:00:50]} 13. exf6 {[%emt 0:01:28]} Rxf6 {[%emt 0:00:47]} 14. Nf3 {[%emt 0:00:34]} Raf8 {[%emt 0:01:23]} 15. Ne5 {[%emt 0:00:55]} Rh6 {[%emt 0:01:58]} 16. Rf3 {[%emt 0:05:02]} Qh4 {[%emt 0:01:55]} 17. Bxe4 {[%emt 0:01:56]} Qxh2+ {[%emt 0:02:06]} 18. Kf2 {[%emt 0:00:48]} dxe4 {[%emt 0:03:00]} 19. Rg3 {[%emt 0:02:02]} Qh4 {[%emt 0:01:30]} 20. Qd7 {[%emt 0:09:51]} g5 {[%emt 0:14:59]} 21. Rh1 {[%emt 0:20:44]} Rxf4+ {[%emt 0:26:32]} 22. Nf3 {[%emt 0:03:43]} Qxh1 {[%emt 0:05:07]} 23. Rxg5+ {[%emt 0:01:11]} Rg6 {[%emt 0:01:08]} 24. Qxe6+ {[%emt 0:01:18]} Rf7 {[%emt 0:00:19]} 25. Rxg6+ {[%emt 0:02:17]} hxg6 {[%emt 0:00:39]} 26. Qxg6+ {[%emt 0:00:46]} Kf8 {[%emt 0:00:31]} 27. Qg3 {[%emt 0:04:48]} exf3 {[%emt 0:00:37]} 0-1

[Event "II Duchamp Open 2018-U1800"]
[Site "Rio de Janeiro"]
[Date "2018.11.19"]
[Round "4"]
[White "Gomes, Carlos"]
[Black "Agrasot, Antonio"]
[Result "1/2-1/2"]
[ECO "B10"]
[WhiteElo "1543"]
[BlackElo "1562"]
[Annotator "NA RC"]
[PlyCount "100"]
[EventDate "2018.11.14"]
[EventType "swiss"]
[EventCountry "BRA"]
[SourceTitle "playchess.com"]
[Source "ChessBase"]
[SourceQuality "1"]
[TimeControl "5400+30"]

1. e4 {[%emt 0:29:52]} c6 {[%emt 0:29:33]} 2. d3 {[%emt 0:00:41]} d5 {[%emt 0:00:17]} 3. Nd2 {[%emt 0:00:22]} dxe4 {[%emt 0:00:15]} 4. dxe4 {[%emt 0:00:27]} e6 {[%emt 0:00:43]} 5. Ngf3 {[%emt 0:01:21]} Bc5 {[%emt 0:02:58]} 6. Be2 {[%emt 0:00:23]} Ne7 {[%emt 0:01:58]} 7. O-O {[%emt 0:00:50]} O-O {[%emt 0:00:02]} 8. Nb3 {[%emt 0:01:28]} Bb6 {[%emt 0:01:19]} 9. Qxd8 {[%emt 0:03:12]} Rxd8 {[%emt 0:00:09]} 10. Bf4 {[%emt 0:00:38]} Ng6 {[%emt 0:09:40]} 11. Bg3 {[%emt 0:03:56]} Nd7 {[%emt 0:08:03]} 12. h4 {[%emt 0:08:09]} h6 {[%emt 0:01:08]} 13. Rad1 {[%emt 0:08:18]} Re8 {[%emt 0:01:18]} 14. Bd3 {[%emt 0:06:04]} e5 {[%emt 0:00:43]} 15. Nfd2 {[%emt 0:02:33]} Bc7 {[%emt 0:04:06]} 16. f3 {[%emt 0:06:29]} Nf4 {[%emt 0:00:44]} 17. Nb1 {[%emt 0:02:32]} Bb6+ {[%emt 0:06:26]} 18. Kh1 {[%emt 0:01:12]} Bc7 {[%emt 0:09:18]} 19. Bf2 {[%emt 0:01:12]} Bb6 {[%emt 0:03:28]} 20. Bxb6 {[%emt 0:01:54]} Nxb6 {[%emt 0:00:57]} 21. Nc3 {[%emt 0:00:15]} Nxd3 {[%emt 0:00:57]} 22. Rxd3 {[%emt 0:04:19]} Nc4 {[%emt 0:01:38]} 23. Rb1 {[%emt 0:00:25]} b6 {[%emt 0:00:48]} 24. Nd2 {[%emt 0:00:44]} Be6 {[%emt 0:01:01]} 25. Nxc4 {[%emt 0:00:41]} Bxc4 {[%emt 0:00:09]} 26. Rd6 {[%emt 0:02:10]} Re6 {[%emt 0:02:02]} 27. Rbd1 {[%emt 0:00:57]} Rc8 {[%emt 0:02:50]} 28. b3 {[%emt 0:00:32]} Rxd6 {[%emt 0:00:23]} 29. Rxd6 {[%emt 0:00:14]} Be6 {[%emt 0:00:39]} 30. Na4 {[%emt 0:03:06]} Kf8 {[%emt 0:00:11]} 31. c4 {[%emt 0:01:03]} Ke7 {[%emt 0:00:15]} 32. Rd2 {[%emt 0:00:11]} Rc7 {[%emt 0:01:11]} 33. c5 {[%emt 0:01:01]} b5 {[%emt 0:00:27]} 34. Nc3 {[%emt 0:01:05]} Rd7 {[%emt 0:00:14]} 35. Rxd7+ {[%emt 0:01:00]} Kxd7 {[%emt 0:00:24]} 36. b4 {[%emt 0:00:02]} Bc4 {[%emt 0:00:25]} 37. a3 {[%emt 0:00:09]} a6 {[%emt 0:00:29]} 38. Kg1 {[%emt 0:00:29]} f6 {[%emt 0:00:24]} 39. Kf2 {[%emt 0:00:03]} h5 {[%emt 0:01:09]} 40. g3 {[%emt 0:02:15]} Be6 {[%emt 0:00:49]} 41. Nd1 {[%emt 0:00:17]} g6 {[%emt 0:01:15]} 42. Ne3 {[%emt 0:00:05]} f5 {[%emt 0:01:15]} 43. Ng2 {[%emt 0:01:12]} fxe4 {[%emt 0:00:46]} 44. fxe4 {[%emt 0:00:08]} Bg4 {[%emt 0:00:27]} 45. Ke3 {[%emt 0:00:11]} Ke6 {[%emt 0:00:35]} 46. Ne1 {[%emt 0:00:10]} Kf6 {[%emt 0:00:26]} 47. Nd3 {[%emt 0:00:09]} Be6 {[%emt 0:00:07]} 48. Nf2 {[%emt 0:00:58]} Bd7 {[%emt 0:00:15]} 49. Kf3 {[%emt 0:00:14]} Bc8 {[%emt 0:02:39]} 50. g4 {[%emt 0:00:31]} Bd7 {[%emt 0:00:35]} 1/2-1/2